bitfinex-derivatives/quotes_SOLF0:USTF0_20241208
["timestamp","ask_amount","ask_price","bid_price","bid_amount"]
[1733699830435,1.92,236.88,236.86,2.1093]
[1733699831138,8.49644229,236.89,236.86,2.1093]
[1733699832142,6.57644229,236.87,236.83,2.1096]
[1733699832337,6.57644229,236.85,236.79,6.57644229]
[1733699832933,6.57644229,236.85,236.82,2.1096]
[1733699834745,6.57644229,236.83,236.74,1.3713]
[1733699834947,6.57644229,236.81,236.75,9.33856784]
[1733699835139,6.57644229,236.81,236.74,1.3713]
[1733699836144,1.92,236.82,236.75,6.57644229]
[1733699837841,6.57644229,236.81,236.77,2.1101]
[1733699840948,6.57644229,236.81,236.74,1.3713]
[1733699841150,6.57644229,236.81,236.78,2.11]
[1733699843346,6.57644229,236.79,236.74,2.1104]
[1733699843849,6.57644229,236.75,236.7,2.1107]
[1733699844151,6.57644229,236.75,236.68,7.88614229]
[1733699845042,6.57644229,236.75,236.72,2.1105]
[1733699845455,8.68674229,236.75,236.7,2.1107]
[1733699845947,8.68674229,236.75,236.71,2.1107]
[1733699847646,6.57644229,236.75,236.71,2.1107]
[1733699848857,8.49644229,236.77,236.72,2.1106]
[1733699849251,1.92,236.77,236.72,2.1106]
[1733699851548,1.92,236.77,236.73,2.1105]
[1733699851748,1.92,236.77,236.72,6.57644229]
[1733699852057,1.92,236.79,236.74,6.57644229]
[1733699852357,1.92,236.79,236.76,2.1101]
[1733699852555,1.92,236.79,236.74,6.57644229]
[1733699853755,1.92,236.79,236.77,2.1101]
[1733699855160,1.92,236.79,236.78,2.11]
[1733699855553,1.9,236.81,236.78,6.57644229]
[1733699855950,1.9,236.81,236.8,2.1099]
[1733699856953,1.9,236.81,236.78,6.57644229]
[1733699856954,1.9,236.81,236.76,6.57644229]
[1733699857156,6.57644229,236.79,236.69,1.2846]
[1733699857458,6.57644229,236.79,236.72,6.57644229]
[1733699858157,6.57644229,236.79,236.76,2.1102]
[1733699858357,6.57644229,236.79,236.72,6.57644229]
[1733699858663,6.57644229,236.79,236.74,2.1104]
[1733699858854,6.57644229,236.79,236.72,6.57644229]
[1733699859554,6.57644229,236.79,236.74,2.1103]
[1733699859959,6.57644229,236.79,236.72,6.57644229]
[1733699860154,6.57644229,236.79,236.75,2.1102]
[1733699860360,10.58624229,236.81,236.72,6.57644229]
[1733699861561,10.58624229,236.81,236.76,2.1101]
[1733699862157,8.68624229,236.81,236.76,2.1101]
[1733699862356,1.9,236.8,236.76,2.1101]
[1733699862562,1.9,236.8,236.77,2.1101]
[1733699862964,1.9,236.8,236.74,6.57644229]
[1733699863450,6.57644229,236.79,236.69,1.2846]
[1733699863651,6.57644229,236.79,236.71,6.57644229]
[1733699864261,6.57644229,236.79,236.75,2.1102]
[1733699864660,1.9,236.8,236.76,2.1102]
[1733699865962,6.57644229,236.79,236.76,2.1102]
[1733699867357,6.57644229,236.79,236.74,2.1103]
[1733699868768,6.57644229,236.77,236.73,2.1105]
[1733699869669,8.68664229,236.77,236.71,2.1106]
[1733699869869,6.57644229,236.77,236.71,2.1106]
[1733699870468,2.1102,236.76,236.71,2.1106]
[1733699870669,1.9,236.75,236.71,2.1106]
[1733699870969,8.47644229,236.75,236.71,2.1106]
[1733699871269,2.1104,236.74,236.69,2.1108]
[1733699871468,1.9,236.75,236.69,2.1108]
[1733699871666,1.9,236.75,236.67,6.57644229]
[1733699871864,1.9,236.75,236.69,6.57644229]
[1733699872072,4.0103,236.75,236.67,8.68744229]
[1733699872267,4.0103,236.75,236.67,6.57644229]
[1733699872464,6.57644229,236.74,236.67,6.57644229]
[1733699872869,8.68684229,236.74,236.7,2.1107]
[1733699873068,6.57644229,236.74,236.67,6.57644229]
[1733699873369,6.57644229,236.72,236.65,6.57644229]
[1733699873569,8.68704229,236.72,236.67,2.1109]
[1733699873867,6.57644229,236.72,236.67,2.1109]
[1733699874169,6.57644229,236.72,236.64,6.57644229]
[1733699874170,2.1108,236.7,236.64,6.57644229]
[1733699874370,8.47644229,236.7,236.64,6.57644229]
[1733699874669,8.47644229,236.7,236.66,2.1111]
[1733699875065,8.47644229,236.7,236.67,2.111]
[1733699876873,2.1097,236.83,236.7,2.1107]
[1733699877074,6.57644229,236.74,236.66,6.57644229]
[1733699877470,1.9,236.73,236.66,6.57644229]
[1733699878367,6.57644229,236.72,236.64,6.57644229]
[1733699878570,6.57644229,236.7,236.64,6.57644229]
[1733699878772,6.57644229,236.7,236.65,2.1111]
[1733699878974,6.57644229,236.7,236.64,6.57644229]
[1733699879775,6.57644229,236.7,236.65,2.1111]
[1733699879976,6.57644229,236.7,236.64,6.57644229]
[1733699880282,6.57644229,236.68,236.62,6.57644229]
[1733699880487,8.47644229,236.68,236.62,6.57644229]
[1733699880981,6.57644229,236.64,236.53,1.9]
[1733699881182,6.57644229,236.64,236.57,6.57644229]
[1733699881382,1.9,236.63,236.53,1.3231]
[1733699881688,1.9,236.63,236.56,6.57644229]
[1733699882186,6.57644229,236.62,236.58,2.1117]
[1733699884786,6.57644229,236.62,236.56,2.1119]
[1733699884978,6.57644229,236.62,236.54,6.57644229]
[1733699885384,6.57644229,236.62,236.55,51.38077341]
[1733699885685,6.57644229,236.6,236.55,49.26877341]
[1733699886686,6.57644229,236.6,236.56,2.112]
[1733699887084,6.57644229,236.6,236.57,2.1119]
[1733699888488,6.57644229,236.6,236.55,49.26877341]
[1733699888689,6.57644229,236.6,236.56,2.112]
[1733699890087,2.1112,236.65,236.57,6.57644229]
[1733699890289,4.0763,236.72,236.59,6.57644229]
[1733699890592,6.57644229,236.66,236.59,6.57644229]
[1733699890799,1.92,236.65,236.59,6.57644229]
[1733699890990,1.92,236.65,236.61,6.57644229]
[1733699891684,1.92,236.65,236.63,2.1113]
[1733699892293,1.92,236.65,236.64,2.1113]
[1733699893091,1.92,236.68,236.63,6.57644229]
[1733699893287,1.92,236.69,236.65,6.57644229]
[1733699893993,1.92,236.75,236.67,6.57644229]
[1733699894188,1.92,236.75,236.69,6.57644229]
[1733699894493,1.92,236.75,236.63,3.9851]
[1733699894494,1.92,236.75,236.68,6.57644229]
[1733699894789,6.57644229,236.74,236.68,6.57644229]
[1733699895089,6.57644229,236.72,236.66,6.57644229]
[1733699895392,6.57644229,236.72,236.64,6.57644229]
[1733699896494,6.57644229,236.72,236.68,2.1109]
[1733699897295,8.68704229,236.72,236.67,2.111]
[1733699897797,6.57644229,236.7,236.67,2.111]
[1733699898094,6.57644229,236.68,236.63,1.3534]
[1733699898288,6.57644229,236.68,236.62,6.57644229]
[1733699898800,6.57644229,236.68,236.64,2.1112]
[1733699898994,6.57644229,236.68,236.6,6.57644229]
[1733699899396,6.57644229,236.68,236.63,2.1113]
[1733699900000,6.57644229,236.64,236.6,2.1116]
[1733699900197,8.49644229,236.64,236.6,2.1116]
[1733699900496,6.57644229,236.62,236.56,2.112]
[1733699900696,6.57644229,236.62,236.53,1.283]
[1733699900888,1.92,236.64,236.53,1.283]
[1733699900889,6.57644229,236.6,236.53,1.283]
[1733699901093,1.92,236.59,236.53,1.283]
[1733699901693,1.92,236.59,236.54,6.57644229]
[1733699902605,1.92,236.59,236.56,2.1119]
[1733699903898,1.92,236.59,236.54,2.1121]
[1733699904504,4.0318,236.59,236.54,2.1121]
[1733699904795,1.92,236.59,236.52,2.1123]
[1733699905197,2.1119,236.58,236.52,2.1123]
[1733699906702,1.92,236.59,236.47,60.89334165]
[1733699906902,1.92,236.59,236.5,10.29503441]
[1733699907108,3.4402,236.63,236.58,2.1118]
[1733699907304,1.92,236.62,236.58,2.1118]
[1733699908505,1.92,236.62,236.56,2.1119]
[1733699909609,2.1116,236.61,236.56,2.1119]
[1733699910708,1.92,236.62,236.56,2.1119]
[1733699912608,1.92,236.62,236.57,2.1119]
[1733699912810,4.0315,236.62,236.57,2.1119]
[1733699913913,4.0315,236.62,236.55,2.112]
[1733699914211,1.92,236.62,236.55,2.112]
[1733699915008,10.29503441,236.61,236.55,2.112]
[1733699915817,2.1117,236.6,236.55,2.112]
[1733699917614,1.94,236.59,236.55,2.112]
[1733699917814,3.4402,236.63,236.57,2.1119]
[1733699918117,3.4402,236.63,236.51,10.29503441]
[1733699918319,10.29503441,236.64,236.51,10.29503441]
[1733699918516,1.94,236.62,236.51,10.29503441]
[1733699918814,12.40633441,236.64,236.51,10.29503441]
[1733699919017,1.94,236.63,236.51,10.29503441]
[1733699919920,1.94,236.62,236.57,2.1118]
[1733699920121,12.40633441,236.64,236.51,10.29503441]
[1733699920419,1.94,236.61,236.51,10.29503441]
[1733699920614,2.1113,236.64,236.59,2.1117]
[1733699920812,10.29503441,236.67,236.51,10.29503441]
[1733699921018,2.1112,236.65,236.54,10.29503441]
[1733699921313,1.94,236.66,236.61,2.1115]
[1733699921513,1.94,236.66,236.55,1.351]
[1733699921731,1.94,236.66,236.56,1.3847]
[1733699922616,1.94,236.66,236.62,2.1114]
[1733699922911,1.94,236.65,236.56,1.3847]
[1733699923117,1.94,236.64,236.56,1.3847]
[1733699923618,1.94,236.64,236.6,2.1116]
[1733699924215,1.94,236.63,236.6,2.1116]
[1733699924915,1.94,236.63,236.61,2.1115]
[1733699927815,1.94,236.63,236.6,2.1116]
[1733699928317,1.94,236.63,236.59,2.1117]
[1733699928812,2.1113,236.64,236.57,6.58597411]
[1733699929018,1.94,236.64,236.62,2.1115]
[1733699929212,6.58597411,236.66,236.62,2.1115]
[1733699929418,1.94,236.65,236.59,6.58597411]
[1733699929615,1.94,236.65,236.62,2.1115]
[1733699929920,1.94,236.65,236.61,6.58597411]
[1733699930612,1.94,236.65,236.63,2.1113]
[1733699932022,1.94,236.65,236.64,2.1113]
[1733699933621,8.52597411,236.66,236.63,2.1114]
[1733699937522,8.52597411,236.66,236.56,1.3847]
[1733699937727,10.63707411,236.66,236.59,6.58597411]
[1733699938722,10.63707411,236.66,236.62,2.1115]
[1733699942627,8.52597411,236.66,236.59,6.58597411]
[1733699942827,1.94,236.66,236.61,6.58597411]
[1733699943221,1.94,236.66,236.65,2.1112]
[1733699943924,25.22483706,236.72,236.63,6.58597411]
[1733699944130,8.52597411,236.73,236.7,2.1107]
[1733699944331,1.94,236.72,236.7,2.1107]
[1733699944924,6.58597411,236.73,236.67,6.58597411]
[1733699945228,1.94,236.72,236.69,6.58597411]
[1733699945424,1.94,236.73,236.69,6.58597411]
[1733699945820,1.94,236.73,236.67,6.58597411]
[1733699946022,6.58597411,236.75,236.67,6.58597411]
[1733699946224,1.94,236.73,236.67,6.58597411]
[1733699946824,1.94,236.73,236.71,2.1106]
[1733699948531,1.94,236.73,236.67,6.58597411]
[1733699948532,6.58597411,236.75,236.67,6.58597411]
[1733699948730,1.94,236.74,236.69,6.58597411]
[1733699949832,1.94,236.74,236.72,2.1105]
[1733699950034,1.94,236.74,236.71,6.58597411]
[1733699950432,1.94,236.74,236.72,2.1106]
[1733699955137,1.94,236.74,236.72,2.1105]
[1733699955438,1.94,236.74,236.69,6.58597411]
[1733699955840,1.94,236.74,236.73,2.1105]
[1733699957231,6.58597411,236.77,236.71,6.58597411]
[1733699957435,6.58597411,236.77,236.75,2.1103]
[1733699957636,8.52597411,236.77,236.71,6.58597411]
[1733699958039,8.52597411,236.77,236.75,2.1102]
[1733699958240,6.58597411,236.77,236.75,2.1102]
[1733699958536,8.52597411,236.77,236.75,2.1102]
[1733699958841,8.52597411,236.77,236.71,6.58597411]
[1733699959537,8.52597411,236.77,236.67,1.3824]
[1733699959538,6.58597411,236.75,236.67,7.96837411]
[1733699959738,2.1104,236.74,236.67,7.96837411]
[1733699960237,6.58597411,236.75,236.67,7.96837411]
[1733699960832,8.69627411,236.75,236.71,2.1107]
[1733699961433,6.58597411,236.73,236.67,6.58597411]
[1733699961629,4.0506,236.72,236.66,1.3681]
[1733699961837,4.0506,236.72,236.63,6.58597411]
[1733699961838,6.58597411,236.69,236.63,6.58597411]
[1733699962234,8.69687411,236.69,236.65,2.1111]
[1733699963135,8.69687411,236.69,236.66,2.1111]
[1733699963435,2.111,236.68,236.61,6.58597411]
[1733699963640,8.52597411,236.67,236.6,2.7331]
[1733699963842,10.63707411,236.67,236.6,2.7331]
[1733699964231,10.63707411,236.67,236.6,1.3626]
[1733699964739,10.63707411,236.67,236.62,2.1115]
[1733699965639,10.63707411,236.67,236.6,1.3626]
[1733699965640,1.94,236.67,236.6,1.3626]
[1733699965841,1.94,236.67,236.61,6.58597411]
[1733699966238,1.94,236.71,236.67,2.1109]
[1733699966947,0.50614,236.78,236.6,1.3626]
[1733699967151,6.58597411,236.76,236.69,6.58597411]
[1733699968050,6.58597411,236.76,236.73,2.1104]
[1733699968252,8.52597411,236.76,236.69,6.58597411]
[1733699968851,8.52597411,236.76,236.75,2.1103]
[1733699968852,1.94,236.76,236.75,2.1103]
[1733699969348,1.94,236.78,236.75,2.1103]
[1733699969753,6.58597411,236.79,236.71,6.58597411]
[1733699969947,1.94,236.78,236.77,2.1101]
[1733699971053,1.94,236.78,236.73,6.58597411]
[1733699971757,1.94,236.78,236.74,2.1104]
[1733699972057,1.94,236.78,236.73,6.58597411]
[1733699972657,1.94,236.78,236.75,2.1103]
[1733699975656,6.58597411,236.79,236.75,2.1103]
[1733699975862,1.92,236.78,236.75,2.1103]
[1733699976064,1.92,236.78,236.71,6.58597411]
[1733699976562,6.58597411,236.77,236.75,2.1103]
[1733699976857,6.58597411,236.77,236.69,6.58597411]
[1733699977062,6.58597411,236.77,236.74,2.1104]
[1733699978366,6.58597411,236.77,236.75,2.1103]
[1733699978959,1.92,236.78,236.71,6.58597411]
[1733699979156,1.92,236.78,236.76,2.1102]
[1733699980861,6.58597411,236.77,236.75,2.1103]
[1733699981056,6.58597411,236.77,236.69,6.58597411]
[1733699981358,6.58597411,236.75,236.71,2.1106]
[1733699981559,6.58597411,236.73,236.68,1.3437]
[1733699981863,8.50597411,236.73,236.67,6.58597411]
[1733699982065,8.50597411,236.73,236.7,2.1107]
[1733699983063,8.50597411,236.73,236.63,1.92]
[1733699983064,1.92,236.78,236.71,6.58597411]
[1733699983263,1.92,236.78,236.73,6.58597411]
[1733699983966,1.92,236.78,236.75,2.1102]
[1733699984160,1.92,236.78,236.73,6.58597411]
[1733699984562,1.92,236.78,236.76,2.1102]
[1733699988968,1.76357,236.83,236.76,2.1102]
[1733699988969,0.43437,236.83,236.76,6.58597411]
[1733699989267,0.43437,236.83,236.79,6.58597411]
[1733699989470,0.43437,236.83,236.82,2.1097]
[1733699994765,4.0291,236.89,236.84,2.1094]
[1733699996369,6.58597411,236.88,236.84,2.1094]
[1733699998174,1.92,236.89,236.84,2.1094]
[1733699999272,1.92,236.89,236.8,2.1098]
[1733699999273,8.69517411,236.88,236.8,2.1098]
[1733699999569,6.58597411,236.88,236.77,1.2926]
[1733699999873,6.58597411,236.88,236.82,6.58597411]
[1733700000177,6.58597411,236.88,236.85,2.1094]
[1733700000673,6.58597411,236.88,236.82,6.58597411]
[1733700000674,6.58597411,236.88,236.84,2.1095]
[1733700002775,1.92,236.89,236.86,2.1093]
[1733700004377,1.92,236.89,236.82,6.58597411]
[1733700004574,6.58597411,236.88,236.84,2.1095]
[1733700004771,6.58597411,236.88,236.77,1.2926]
[1733700005081,6.58597411,236.88,236.81,6.58597411]
[1733700005579,8.69517411,236.88,236.83,2.1095]
[1733700006178,6.58597411,236.88,236.83,2.1095]
[1733700006371,6.58597411,236.86,236.81,2.1097]
[1733700006777,6.58597411,236.86,236.78,6.58597411]
[1733700006778,2.1095,236.85,236.78,6.58597411]
[1733700006981,8.48597411,236.84,236.79,2.1099]
[1733700007179,6.58597411,236.82,236.76,6.58597411]
[1733700007375,1.9,236.84,236.76,6.58597411]
[1733700007577,4.6288,236.91,236.83,6.58597411]
[1733700007781,11.21477411,236.91,236.85,6.58597411]
[1733700007975,13.32377411,236.91,236.85,6.58597411]
[1733700009673,0.24075,236.95,236.87,6.58597411]
[1733700009874,6.82672411,236.95,236.87,6.58597411]
[1733700010071,8.72672411,236.95,236.89,6.58597411]
[1733700010472,2.14075,236.95,236.92,2.1088]
[1733700011371,0.24075,236.95,236.89,6.58597411]
[1733700011572,0.24075,236.95,236.91,6.58597411]
[1733700012681,0.24075,236.95,236.94,2.1086]
[1733700020886,0.24075,236.95,236.91,2.1088]
[1733700021082,6.58597411,236.94,236.91,2.1088]
[1733700021283,0.24075,236.95,236.91,2.1088]
[1733700021485,1.9,237.01,236.94,6.58597411]
[1733700022188,1.9,237.01,236.96,2.1084]
[1733700022588,1.9,237.04,236.98,6.58597411]
[1733700023284,1.9,237.04,237.0,2.108]
[1733700023590,1.9,237.04,236.98,6.58597411]
[1733700023988,1.9,237.04,237.01,2.108]
[1733700025685,1.9,237.04,237.02,2.1079]
[1733700026088,8.48597411,237.04,236.96,6.58597411]
[1733700026287,2.1079,237.02,236.97,2.1083]
[1733700026590,6.58597411,237.02,236.97,2.1083]
[1733700030790,6.58597411,237.0,236.97,2.1083]
[1733700034890,6.58597411,237.01,236.97,2.1083]
[1733700037191,1.9,237.04,236.99,6.58597411]
[1733700037496,2.06,237.04,236.99,6.58597411]
[1733700037698,2.06,237.04,236.97,6.58597411]
[1733700037894,12.67,237.2,237.03,6.58597411]
[1733700038099,6.1308,237.19,237.06,6.58597411]
[1733700038593,4.0708,237.19,237.06,6.58597411]
[1733700038794,4.0708,237.19,237.0,2.06]
[1733700038795,6.58597411,237.15,237.08,6.58597411]
[1733700038995,2.06,237.16,237.1,6.58597411]
[1733700039300,1.294,237.25,237.15,6.58597411]
[1733700039493,2.10783693,237.21,237.1,2.06]
[1733700039799,2.10783693,237.21,237.17,6.58597411]
[1733700040002,2.10783693,237.21,237.15,6.58597411]
[1733700040003,8.69381104,237.21,237.15,6.58597411]
[1733700040299,2.10783693,237.21,237.13,6.58597411]
[1733700040499,6.58597411,237.19,237.13,6.58597411]
[1733700040704,2.10783693,237.21,237.17,2.1066]
[1733700040705,8.69381104,237.21,237.17,2.1066]
[1733700041299,8.69381104,237.21,237.15,6.58597411]
[1733700041494,6.58597411,237.19,237.13,6.58597411]
[1733700041697,6.58597411,237.19,237.17,2.1066]
[1733700041896,8.69381104,237.21,237.17,2.1066]
[1733700042298,6.58597411,237.19,237.17,2.1066]
[1733700042594,8.69381104,237.21,237.17,2.1066]
[1733700043002,6.58597411,237.19,237.15,2.1067]
[1733700048500,8.80597411,237.2,237.15,2.1067]
[1733700050303,6.58597411,237.18,237.15,2.1067]
[1733700052305,6.58597411,237.18,237.11,1.3824]
[1733700052509,6.58597411,237.18,237.06,1.3961]
[1733700052510,6.58597411,237.16,237.08,6.58597411]
[1733700052709,2.22,237.15,237.08,6.58597411]
[1733700052909,6.58597411,237.14,237.08,6.58597411]
[1733700053811,2.22,237.15,237.12,2.107]
[1733700054012,2.22,237.15,237.1,6.58597411]
[1733700054907,2.22,237.15,237.12,2.1069]
[1733700057406,2.22,237.15,237.13,2.1069]
[1733700057612,2.22,237.15,237.09,6.58597411]
[1733700058510,2.22,237.15,237.14,2.1069]
[1733700059310,6.58597411,237.2,237.13,6.58597411]
[1733700059511,8.80597411,237.2,237.13,6.58597411]
[1733700060922,8.80597411,237.21,237.13,6.58597411]
[1733700061221,6.58597411,237.22,237.15,6.58597411]
[1733700061721,6.58597411,237.22,237.19,2.1063]
[1733700062121,6.58597411,237.22,237.15,6.58597411]
[1733700063717,6.58597411,237.22,237.19,2.1064]
[1733700065321,6.58597411,237.22,237.2,2.1063]
[1733700067626,6.58597411,237.22,237.15,6.58597411]
[1733700067831,6.58597411,237.22,237.18,2.1064]
[1733700070931,6.58597411,237.2,237.15,2.1067]
[1733700071132,6.58597411,237.17,237.15,2.1067]
[1733700071333,6.58597411,237.19,237.15,2.1067]
[1733700071530,6.58597411,237.19,237.13,2.1069]
[1733700071735,6.58597411,237.19,237.11,7.91997411]
[1733700072229,8.69257411,237.17,237.12,2.107]
[1733700073335,6.58597411,237.17,237.1,6.58597411]
[1733700074133,6.58597411,237.17,237.14,2.1068]
[1733700074339,6.58597411,237.19,237.12,6.58597411]
[1733700074538,6.58597411,237.2,237.14,6.58597411]
[1733700076437,6.58597411,237.2,237.18,2.1065]
[1733700076938,6.58597411,237.2,237.17,2.1066]
[1733700079031,6.58597411,237.18,237.09,0.30303]
[1733700079237,6.58597411,237.18,237.1,6.58597411]
[1733700079632,6.58597411,237.18,237.14,2.1068]
[1733700080037,6.58597411,237.18,237.1,6.58597411]
[1733700080237,8.69257411,237.18,237.1,6.58597411]
[1733700081138,2.1066,237.17,237.13,2.1069]
[1733700081342,6.58597411,237.16,237.1,6.58597411]
[1733700081741,6.58597411,237.16,237.09,0.30303]
[1733700082041,2.1068,237.15,237.11,2.107]
[1733700082238,2.1068,237.15,237.09,0.30303]
[1733700082639,6.58597411,237.16,237.12,2.107]
[1733700082842,6.58597411,237.16,237.1,6.58597411]
[1733700083237,4.3267,237.17,237.12,2.107]
[1733700083442,4.3267,237.17,237.1,6.58597411]
[1733700084042,4.3267,237.17,237.12,2.107]
[1733700084445,2.22,237.17,237.12,2.107]
[1733700084644,2.22,237.17,237.1,6.58597411]
[1733700085045,2.22,237.17,237.14,2.1069]
[1733700086150,1.3003,237.26,237.12,6.58597411]
[1733700086346,2.1062,237.22,237.17,2.1065]
[1733700086546,6.58597411,237.2,237.17,2.1065]
[1733700087653,6.58597411,237.2,237.16,2.1067]
[1733700088149,6.58597411,237.18,237.16,2.1067]
[1733700089546,6.58597411,237.18,237.17,2.1066]
[1733700089955,6.58597411,237.2,237.12,6.58597411]
[1733700090452,8.80597411,237.22,237.14,6.58597411]
[1733700091451,2.22,237.22,237.14,6.58597411]
[1733700091750,6.58597411,237.21,237.18,2.1064]
[1733700092353,2.1059,237.26,237.19,6.58597411]
[1733700092655,6.58597411,237.25,237.17,6.58597411]
[1733700094153,6.58597411,237.25,237.21,2.1062]
[1733700094744,6.58597411,237.25,237.23,2.1061]
[1733700095146,6.58597411,237.26,237.23,2.1061]
[1733700095952,6.58597411,237.24,237.12,1.2948]
[1733700096150,6.58597411,237.24,237.17,6.58597411]
[1733700096957,6.58597411,237.24,237.21,2.1062]
[1733700097758,6.58597411,237.26,237.22,2.1061]
[1733700101658,6.58597411,237.25,237.22,2.1061]
[1733700103658,4.3256,237.28,237.21,6.58597411]
[1733700103659,6.58597411,237.27,237.21,6.58597411]
[1733700103859,6.58597411,237.27,237.19,6.58597411]
[1733700104258,6.58597411,237.27,237.22,2.1061]
[1733700105655,2.1056,237.28,237.22,2.1061]
[1733700105853,8.69157411,237.28,237.22,2.1061]
[1733700107059,8.84597411,237.3,237.26,2.1058]
[1733700107762,6.58597411,237.28,237.26,2.1058]
[1733700107964,6.58597411,237.29,237.26,2.1058]
[1733700108161,2.1054,237.31,237.26,2.1058]
[1733700108362,6.58597411,237.3,237.26,2.1058]
[1733700108966,6.58597411,237.3,237.27,2.1057]
[1733700109372,6.58597411,237.28,237.27,2.1057]
[1733700109564,6.58597411,237.3,237.27,2.1057]
[1733700110067,6.58597411,237.3,237.24,6.58597411]
[1733700110271,6.58597411,237.3,237.26,2.1058]
[1733700111162,2.1057,237.27,237.21,2.1062]
[1733700111369,2.1057,237.27,237.21,6.58597411]
[1733700111562,6.58597411,237.28,237.21,6.58597411]
[1733700111967,6.58597411,237.28,237.23,2.106]
[1733700116673,6.58597411,237.28,237.14,1.4119]
[1733700116674,6.58597411,237.26,237.18,6.58597411]
[1733700117067,8.69177411,237.26,237.21,2.1062]
[1733700117274,6.58597411,237.24,237.21,2.1062]
[1733700117870,6.58597411,237.24,237.18,2.1065]
[1733700119472,6.58597411,237.2,237.16,2.1066]
[1733700119672,6.58597411,237.2,237.12,1.2948]
[1733700119971,6.58597411,237.2,237.14,6.58597411]
[1733700120367,6.58597411,237.2,237.15,2.1068]
[1733700120566,6.58597411,237.2,237.12,7.88077411]
[1733700120771,8.69227411,237.2,237.14,2.1068]
[1733700121873,8.69247411,237.18,237.11,2.1071]
[1733700122073,8.69247411,237.18,237.11,6.58597411]
[1733700122773,2.1066,237.17,237.11,6.58597411]
[1733700123075,2.26,237.16,237.11,6.58597411]
[1733700123273,2.26,237.16,237.12,2.107]
[1733700124772,8.84597411,237.16,237.12,2.107]
[1733700125366,2.26,237.16,237.11,6.58597411]
[1733700126271,2.26,237.16,237.14,2.1069]
[1733700127878,2.26,237.16,237.15,2.1068]
[1733700129477,8.84597411,237.16,237.12,2.107]
[1733700129878,6.58597411,237.14,237.08,0.32446]
[1733700130271,6.58597411,237.12,237.08,0.32446]
[1733700130674,6.58597411,237.12,237.09,2.1073]
[1733700132071,2.26,237.16,237.11,6.58597411]
[1733700132680,2.7003,237.2,237.08,0.32446]
[1733700132880,2.26,237.19,237.09,6.58597411]
[1733700133083,6.58597411,237.17,237.09,6.58597411]
[1733700133976,6.58597411,237.17,237.14,2.1068]
[1733700134175,2.26,237.19,237.13,6.58597411]
[1733700135178,11.52627411,237.2,237.17,2.1066]
[1733700136885,8.82597411,237.2,237.18,2.1065]
[1733700137482,8.82597411,237.2,237.13,6.58597411]
[1733700137685,8.82597411,237.2,237.17,2.1066]
[1733700138182,2.24,237.21,237.15,6.58597411]
[1733700138481,2.6016,237.29,237.17,6.58597411]
[1733700138482,2.24,237.25,237.17,6.58597411]
[1733700139587,2.24,237.25,237.21,2.1062]
[1733700139788,8.82597411,237.26,237.21,2.1062]
[1733700140281,6.58597411,237.24,237.2,2.1063]
[1733700140684,6.58597411,237.24,237.17,6.58597411]
[1733700140881,6.58597411,237.24,237.21,2.1062]
[1733700143186,6.58597411,237.24,237.17,2.1065]
[1733700143387,6.58597411,237.22,237.09,1.3236]
[1733700143590,2.24,237.21,237.13,6.58597411]
[1733700143885,2.24,237.21,237.17,2.1066]
[1733700144083,6.58597411,237.2,237.17,2.1066]
[1733700144283,6.58597411,237.2,237.09,1.3236]
[1733700144482,6.58597411,237.2,237.16,2.1067]
[1733700145384,6.58597411,237.2,237.12,6.58597411]
[1733700145385,6.58597411,237.18,237.13,2.1069]
[1733700146387,2.24,237.22,237.21,2.1062]
[1733700146587,2.24,237.22,237.16,6.58597411]
[1733700147091,2.24,237.22,237.2,2.1063]
[1733700148491,2.24,237.22,237.21,2.1062]
[1733700149894,6.58597411,237.25,237.21,2.1062]
[1733700150093,8.82597411,237.25,237.21,2.1062]
[1733700152096,6.58597411,237.23,237.21,2.1062]
[1733700152693,8.82597411,237.25,237.21,2.1062]
[1733700153397,6.58597411,237.23,237.21,2.1062]
[1733700156293,2.1059,237.26,237.16,6.58597411]